bitfinex/quotes_ETHUSD_20240811
["timestamp","ask_amount","ask_price","bid_price","bid_amount"]
[1723417417788,9.6254,2567.4,2566.0,3.270998]
[1723417418087,9.6254,2567.4,2566.0,2.3781]
[1723417418088,2.72751,2566.5,2566.0,2.3781]
[1723417418292,2.72722,2566.8,2566.2,2.72775]
[1723417418584,0.272722,2566.8,2566.0,2.3781]
[1723417418800,2.7274,2566.6,2566.0,5.10606]
[1723417419143,2.7274,2566.6,2566.0,5.10604]
[1723417419338,2.7274,2566.6,2566.0,2.3781]
[1723417419633,2.72762,2566.4,2566.1,0.55]
[1723417419836,3.000382,2566.4,2566.1,0.55]
[1723417419997,5.45479,2566.6,2566.1,0.55]
[1723417420200,2.72764,2566.4,2566.1,0.55]
[1723417420526,2.72783,2566.2,2565.6,2.4834]
[1723417421023,5.45568,2566.2,2565.6,2.4834]
[1723417421228,2.72783,2566.2,2565.6,5.21176]
[1723417421732,2.72761,2566.4,2565.8,2.72816]
[1723417422097,5.45527,2566.4,2565.9,0.55]
[1723417422335,2.72761,2566.4,2565.8,0.55]
[1723417423110,2.72773,2566.3,2565.8,0.55]
[1723417424315,7.27,2566.7,2565.8,3.9747037]
[1723417424316,2.7274,2566.6,2565.8,3.9747037]
[1723417424552,2.72753,2566.5,2566.0,2.72797]
[1723417424913,12.28,2567.2,2566.2,2.72767]
[1723417424914,2.72711,2566.9,2566.2,2.72767]
[1723417425288,2.72711,2566.9,2566.3,0.62792243]
[1723417425417,22.58280703,2567.1,2566.4,2.72748]
[1723417425782,2.72686,2567.1,2566.5,0.62792095]
[1723417426118,7.27,2567.2,2566.5,0.96346205]
[1723417426333,7.27,2567.2,2566.7,2.72717]
[1723417426535,7.27,2567.2,2566.8,0.55]
[1723417426717,9.99671,2567.2,2566.8,0.62791216]
[1723417426918,7.27,2567.2,2566.8,0.55]
[1723417427246,7.27,2567.2,2566.8,1.47669596]
[1723417427416,22.58239703,2567.5,2566.9,2.72701]
[1723417427622,2.72645,2567.5,2567.0,0.55]
[1723417427929,2.72632,2567.6,2567.0,3.27684]
[1723417428146,2.72645,2567.5,2567.0,3.27684]
[1723417428457,7.27,2567.7,2567.3,2.72656]
[1723417428657,7.27,2567.7,2567.4,0.90054797]
[1723417428826,7.27,2567.7,2567.4,0.55]
[1723417429026,7.27,2567.7,2567.2,0.62789311]
[1723417429228,9.99619,2567.7,2567.2,0.62789311]
[1723417429433,7.27,2567.7,2567.2,0.62789311]
[1723417429656,2.7267,2567.2,2566.7,5.21058]
[1723417429960,2.7267,2567.2,2566.8,0.55]
[1723417430139,5.45348,2567.2,2566.8,0.55]
[1723417430321,2.7267,2567.2,2566.8,0.55]
[1723417430946,2.7267,2567.2,2566.5,3.0629311]
[1723417430947,2.72692,2567.0,2566.5,3.0629311]
[1723417431130,2.72692,2567.0,2566.6,0.53943311]
[1723417431330,5.45348,2567.2,2566.6,0.53943311]
[1723417431655,5.45315,2567.4,2566.7,2.80508374]
[1723417431860,2.72656,2567.4,2566.8,2.72711]
[1723417432152,2.72655,2567.4,2566.8,2.72711]
[1723417432326,2.72671,2567.2,2566.9,0.55]
[1723417432530,2.72671,2567.2,2566.8,0.55]
[1723417432728,2.72692,2567.0,2566.8,0.55]
[1723417432940,5.45389,2567.0,2566.7,0.55]
[1723417433170,5.45389,2567.0,2566.5,3.3355411]
[1723417433171,2.7271,2566.9,2566.5,3.0]
[1723417433465,5.4539,2567.0,2566.4,8.05885]
[1723417434355,2.72692,2567.0,2566.4,8.05885]
[1723417434563,2.72692,2567.0,2566.5,0.55]
[1723417434725,2.72692,2567.0,2566.5,6.35529858]
[1723417435062,2.72692,2567.0,2566.6,1.16866986]
[1723417435360,2.72692,2567.0,2566.7,0.55]
[1723417435361,2.72711,2566.9,2566.7,0.55]
[1723417435663,2.72692,2567.0,2566.7,0.55]
[1723417435957,2.72674,2567.2,2566.6,2.72733]
[1723417436257,2.72674,2567.2,2566.7,3.27721]
[1723417436423,5.45351,2567.2,2566.7,0.55]
[1723417437419,2.72687,2567.1,2566.7,0.55]
[1723417437621,2.72687,2567.1,2566.6,0.55]
[1723417437845,2.72694,2567.0,2566.6,0.55]
[1723417439086,2.7271,2566.9,2566.6,0.55]
[1723417439288,2.72707,2566.9,2566.2,9.55069]
[1723417439463,2.72729,2566.7,2566.3,3.0]
[1723417440192,2.72719,2566.8,2566.3,3.0]
[1723417440348,2.72709,2566.9,2566.3,4.457696]
[1723417440548,2.7272,2566.8,2566.3,4.457696]
[1723417440899,0.545368,2567.0,2566.1,2.2985]
[1723417440900,2.72725,2566.7,2566.1,2.2985]
[1723417441058,2.72725,2566.7,2566.1,5.2985]
[1723417441260,0.545368,2567.0,2565.8,3.823]
[1723417441261,2.72746,2566.5,2565.8,6.55112]
[1723417441457,2.72771,2566.3,2565.8,2.72812]
[1723417441756,19.85594703,2566.8,2565.7,2.2985]
[1723417441956,2.7275,2566.5,2565.8,2.95798]
[1723417442483,22.58310703,2566.8,2565.8,2.95798]
[1723417442484,2.72771,2566.3,2565.8,2.95798]
[1723417442652,2.72771,2566.3,2565.8,2.72813]
[1723417442997,5.45544,2566.3,2565.8,2.72813]
[1723417443175,2.72787,2566.1,2565.9,0.55]
[1723417443351,2.72787,2566.1,2565.8,0.55]
[1723417444071,2.72815,2565.9,2565.1,5.1685]
[1723417444281,5.45668,2565.7,2565.1,7.89741]
[1723417444586,2.72841,2565.6,2565.1,7.89741]
[1723417444886,2.72814,2565.9,2565.3,2.72871]
[1723417445255,2.72791,2566.1,2565.5,2.72851]
[1723417445465,2.72815,2565.9,2565.3,3.88162941]
[1723417445660,2.72815,2565.9,2565.3,3.80367423]
[1723417445866,2.72798,2566.0,2565.3,6.61025731]
[1723417446175,2.72798,2566.0,2565.3,3.88160731]
[1723417446502,2.72798,2566.0,2565.4,3.27859]
[1723417447005,2.72793,2566.1,2565.4,3.27854]
[1723417447367,2.72793,2566.1,2565.5,2.7285]
[1723417447903,2.728,2566.0,2565.4,3.27854]
[1723417448105,2.728,2566.0,2565.4,6.00709]
[1723417448266,2.72793,2566.1,2565.5,2.72849]
[1723417448904,5.4559,2566.1,2565.5,2.72849]
[1723417449209,9.99772,2566.3,2565.7,2.72829]
[1723417449499,2.72747,2566.5,2565.8,1.12962854]
[1723417449706,2.72747,2566.5,2565.9,2.72807]
[1723417449707,2.72762,2566.4,2565.9,2.72807]
[1723417449910,2.72747,2566.5,2566.0,0.55]
[1723417450510,2.72729,2566.7,2566.1,2.72787]
[1723417450717,2.72715,2566.8,2566.2,2.8074]
[1723417450859,0.545368,2567.0,2566.2,2.8074]
[1723417450860,2.7264,2567.5,2567.0,2.2574]
[1723417451063,2.7264,2567.5,2566.8,5.59713]
[1723417451064,2.72639,2567.5,2566.8,5.59713]
[1723417451373,2.72666,2567.3,2566.9,0.55]
[1723417451769,5.45333,2567.3,2566.9,0.55]
[1723417452099,2.72674,2567.2,2566.9,0.55]
[1723417452312,2.3037,2567.7,2566.5,5.1274]
[1723417452602,2.72714,2566.8,2566.3,3.0]
[1723417452773,2.72714,2566.8,2566.4,0.55]
[1723417452976,2.72714,2566.8,2566.4,1.69051]
[1723417454276,2.72713,2566.8,2566.4,1.69051]
[1723417454903,2.72708,2566.9,2566.4,1.69051]
[1723417455067,2.72685,2567.1,2566.4,7.14546]
[1723417455263,2.72693,2567.0,2566.4,4.41797]
[1723417455477,2.72685,2567.1,2566.4,4.41797]
[1723417455478,2.72685,2567.1,2566.5,3.469177]
[1723417455812,2.72685,2567.1,2566.6,0.55]
[1723417456179,2.72665,2567.3,2566.6,0.55]
[1723417456180,2.72672,2567.2,2566.6,0.55]
[1723417456399,2.72672,2567.2,2566.6,0.95970931]
[1723417456710,2.72665,2567.3,2566.7,4.98454]
[1723417456915,2.72665,2567.3,2566.8,0.55]
[1723417457205,2.72681,2567.1,2566.8,0.55]
[1723417457424,2.72623,2567.7,2567.1,2.72675]
[1723417457425,2.72622,2567.7,2567.1,2.72675]
[1723417457724,2.72622,2567.7,2566.8,4.69571093]
[1723417457725,2.72619,2567.7,2566.8,4.69571093]
[1723417457865,2.72703,2566.9,2566.4,2.3445]
[1723417458069,2.72713,2566.8,2566.5,0.55]
[1723417458411,2.72693,2567.0,2566.5,0.55]
[1723417458913,2.72719,2566.8,2566.5,0.55]
[1723417459083,2.72729,2566.7,2566.1,5.3775]
[1723417459423,2.72729,2566.7,2566.1,8.10531]
[1723417459703,2.72729,2566.7,2566.2,1.465719]
[1723417459909,2.72735,2566.6,2566.2,1.465719]
[1723417460114,2.72717,2566.8,2566.1,5.3775]
[1723417460298,2.72717,2566.8,2566.2,2.7277]
[1723417460672,5.45437,2566.8,2566.3,0.55]
[1723417460869,2.72717,2566.8,2566.3,0.55]
[1723417461109,2.72717,2566.8,2566.2,3.2777]
[1723417461277,2.72717,2566.8,2566.2,4.19785]
[1723417461483,2.72717,2566.8,2566.3,2.72764]
[1723417461974,2.72717,2566.8,2566.2,4.19785]
[1723417462574,2.72698,2567.0,2566.4,2.72755]
[1723417462918,2.72698,2567.0,2566.5,0.55]
[1723417463265,0.508992,2567.3,2566.5,2.8826]
[1723417463487,2.72724,2566.7,2566.5,0.55]
[1723417463687,5.45456,2566.7,2566.3,0.55]
[1723417463883,2.72642,2567.5,2566.1,3.0]
[1723417463884,7.27,2567.0,2566.1,3.0]
[1723417464135,5.45501,2566.5,2565.9,5.08917]
[1723417464315,5.45501,2566.5,2566.0,3.0]
[1723417464316,5.45504,2566.5,2566.0,3.0]
[1723417464533,2.72729,2566.7,2566.0,5.80590506]
[1723417464673,2.72706,2566.9,2566.1,3.25751151]
[1723417464868,2.72716,2566.8,2566.2,2.80562554]
[1723417465223,7.27,2567.0,2566.5,2.72743]
[1723417465516,7.27,2567.0,2566.6,2.4172]
[1723417465695,2.72702,2566.9,2566.6,2.4172]
[1723417466397,9.99692,2567.0,2566.6,2.4172]
[1723417466601,22.58279703,2567.1,2566.6,2.4172]
[1723417466909,22.58279703,2567.1,2566.6,2.931669]
[1723417466910,2.72693,2567.0,2566.6,2.931669]
[1723417467990,2.72702,2566.9,2566.6,2.4172]
[1723417468322,2.72702,2566.9,2566.2,3.9068267]
[1723417468323,2.72702,2566.9,2566.3,5.4111]
[1723417468493,2.72702,2566.9,2566.4,0.55]
[1723417468494,2.72732,2566.7,2566.4,0.55]
[1723417469316,5.45463,2566.7,2566.4,0.55]
[1723417469828,2.72744,2566.5,2566.4,0.55]
[1723417469979,2.72744,2566.5,2566.0,5.4147]
[1723417470185,2.72769,2566.3,2566.0,6.252597]
[1723417470823,2.72744,2566.5,2566.0,6.252597]
[1723417470985,2.72756,2566.4,2566.0,6.252597]
[1723417471181,2.72773,2566.3,2566.0,6.252597]
[1723417471419,2.72793,2566.1,2565.7,2.3963]
[1723417471594,2.72793,2566.1,2565.8,0.55]
[1723417472381,2.72768,2566.3,2565.8,0.55]
[1723417472582,2.72768,2566.3,2565.8,1.499863]
[1723417472806,2.4877,2566.5,2565.6,3.824]
[1723417472807,2.72777,2566.2,2565.6,3.824]
[1723417473009,2.72777,2566.2,2565.7,3.0]
[1723417473185,5.21517,2566.5,2565.4,2.2849]
[1723417473186,2.72798,2566.0,2565.4,5.01342]
[1723417473396,2.72798,2566.0,2565.4,5.25432523]
[1723417473724,5.45667,2565.7,2565.4,0.24090523]
[1723417473888,2.7284,2565.6,2565.2,0.1241523]
[1723417474289,5.45668,2565.7,2565.2,0.1241523]
[1723417474505,2.72831,2565.7,2565.2,0.1241523]
[1723417474844,2.72846,2565.6,2565.2,0.64278153]
[1723417475445,2.72862,2565.4,2565.2,0.64278153]
[1723417475653,2.72862,2565.4,2565.2,0.1241523]
[1723417476126,5.45731,2565.4,2565.2,0.1241523]
[1723417476449,2.72862,2565.4,2565.2,0.1241523]
[1723417476902,2.72872,2565.3,2565.2,0.1241523]
[1723417477101,2.72862,2565.4,2565.2,0.1241523]
[1723417478656,2.72868,2565.4,2565.2,0.1241523]
[1723417478815,2.72872,2565.3,2565.2,0.1241523]
[1723417481406,5.45744,2565.3,2565.2,0.1241523]
[1723417482368,2.72872,2565.3,2565.2,0.1241523]
[1723417483926,5.45744,2565.3,2565.2,0.1241523]
[1723417484262,6.506709,2565.3,2565.2,0.1241523]
[1723417484413,9.235429,2565.3,2565.2,0.1241523]
[1723417484839,9.235429,2565.3,2564.2,2.4352]
[1723417484840,2.72969,2564.4,2564.2,2.4352]
[1723417485044,3.777989,2565.3,2563.2,0.48264474]
[1723417485045,2.72978,2564.3,2563.9,2.457]
[1723417485421,2.72961,2564.5,2563.9,2.457]
[1723417485622,2.72979,2564.3,2563.9,2.457]
[1723417486132,5.45966,2564.3,2563.9,2.457]
[1723417486383,2.7297,2564.4,2563.9,3.275734]
[1723417486537,2.72872,2565.3,2563.9,3.275734]
[1723417486538,2.72923,2564.9,2564.3,2.72978]
[1723417486735,2.72906,2565.0,2564.4,2.3505]
[1723417487060,2.72923,2564.9,2564.4,2.623478]
[1723417487236,2.72938,2564.7,2564.4,2.623478]
[1723417487419,2.72921,2564.9,2564.4,2.623478]
[1723417487625,2.72921,2564.9,2564.5,0.55]
[1723417487831,2.72878,2565.3,2564.5,4.1428478]
[1723417488021,2.7291,2565.0,2564.5,1.4132778]
[1723417488217,2.7291,2565.0,2564.6,0.64933878]
[1723417488419,2.72915,2564.9,2564.7,0.55]
[1723417488863,2.72925,2564.8,2564.7,0.55]
[1723417489158,2.72925,2564.8,2564.5,0.55]
[1723417489382,2.72943,2564.7,2564.5,0.78505]
[1723417489525,2.72943,2564.7,2564.4,2.3505]
[1723417490236,2.72925,2564.8,2564.4,2.3505]
[1723417491230,2.72944,2564.7,2564.4,2.3505]
[1723417492638,2.72944,2564.7,2564.2,3.0]
[1723417492838,2.72925,2564.8,2564.2,3.0]
[1723417492839,2.72948,2564.6,2564.3,0.55]
[1723417494678,2.72932,2564.8,2564.3,0.55]
[1723417495038,29.85503703,2565.0,2564.4,2.72967]
[1723417495234,29.85503703,2565.0,2564.6,2.3961]
[1723417495536,29.85503703,2565.0,2564.3,0.55]
[1723417495537,5.4586,2564.8,2564.3,2.8745]
[1723417495745,2.72936,2564.7,2564.3,2.8745]
[1723417495979,5.45858,2564.8,2564.3,3.7922341]
[1723417496336,2.72925,2564.8,2564.3,3.7922341]
[1723417496564,29.85503703,2565.0,2564.3,3.87022031]
[1723417496565,27.12594703,2565.0,2564.3,3.87022031]
[1723417496775,27.12594703,2565.0,2564.6,2.72946]
[1723417496958,27.12594703,2565.0,2564.7,0.55]
[1723417497147,27.12594703,2565.0,2564.7,3.27935]
[1723417497359,19.85594703,2565.2,2564.7,3.27935]
[1723417497561,19.85594703,2565.2,2564.8,2.4246]
[1723417497872,19.85594703,2565.2,2564.9,0.55]
[1723417498575,19.85594703,2565.2,2564.9,3.8572627]
[1723417498874,19.85594703,2565.2,2565.0,2.72898]
[1723417499034,2.72833,2565.7,2565.0,5.45795]
[1723417499035,27.12594703,2565.6,2565.0,5.45795]
[1723417499239,29.85437703,2565.6,2565.0,2.72897]
[1723417499448,27.12594703,2565.6,2565.0,3.35714527]
[1723417499648,27.12594703,2565.6,2565.3,2.2792]
[1723417499649,7.27,2565.6,2565.3,2.2792]
[1723417500147,7.27,2565.6,2565.3,5.00792]
[1723417500349,7.27,2565.6,2565.3,6.08938276]
[1723417500559,7.27,2565.6,2565.4,0.55]
[1723417501082,2.72851,2565.5,2565.1,3.0]
[1723417501283,2.72851,2565.5,2564.4,3.47396113]
[1723417501284,2.72887,2565.2,2564.6,8.9126]
[1723417501486,0.999848,2565.5,2564.7,3.55]
[1723417501790,2.72889,2565.2,2564.7,3.0]
[1723417502360,2.72893,2565.1,2564.7,3.0]
[1723417502561,5.45793,2565.1,2564.7,3.0]
[1723417502874,0.999848,2565.5,2564.7,3.0]
[1723417502875,2.72878,2565.3,2564.7,5.72935]
[1723417503078,2.72878,2565.3,2564.8,0.62797012]
[1723417503280,2.72878,2565.3,2564.8,3.27918]
[1723417503483,2.72878,2565.3,2564.8,0.55]
[1723417503785,5.45758,2565.3,2564.8,0.55]
[1723417503957,2.72878,2565.3,2564.8,0.55]
[1723417504158,5.45757,2565.3,2564.8,0.55]
[1723417504364,5.4576,2565.3,2564.8,0.55]
[1723417504572,2.72878,2565.3,2564.8,0.55]
[1723417504950,2.72878,2565.3,2564.7,3.0]
[1723417504951,2.265,2565.2,2564.0,2.43]
[1723417505264,2.265,2565.2,2564.0,5.16]
[1723417505265,5.45885,2564.7,2564.0,5.16]
[1723417505463,2.72942,2564.7,2564.0,7.89002]
[1723417505667,2.72942,2564.7,2564.0,9.062122]
[1723417506192,2.72942,2564.7,2564.1,2.72997]
[1723417506357,2.72942,2564.7,2564.0,5.16]
[1723417506550,2.72942,2564.7,2564.1,3.0]
[1723417506795,5.45885,2564.7,2564.1,5.72994]
[1723417506967,5.4584,2564.9,2564.2,2.72988]
[1723417507170,5.4584,2564.9,2564.3,3.0]
[1723417507171,2.72932,2564.8,2564.3,3.0]
[1723417507491,2.72895,2565.1,2564.5,2.4987]
[1723417507674,2.72876,2565.3,2564.6,2.7294]
[1723417507849,0.999848,2565.5,2564.6,2.7294]
[1723417507850,2.72857,2565.5,2564.9,2.72906]
[1723417508051,2.72857,2565.5,2564.9,3.30976373]
[1723417508300,2.72857,2565.5,2564.9,5.80846373]
[1723417508455,2.72857,2565.5,2564.9,3.07940373]
[1723417508855,2.72857,2565.5,2565.0,2.72904]
[1723417509076,2.72857,2565.5,2564.9,3.07940373]
[1723417509077,5.05164,2565.9,2565.1,6.35684071]
[1723417509278,2.72814,2565.9,2565.1,6.35683071]
[1723417509483,2.72826,2565.8,2565.2,5.22751]
[1723417510193,2.7283,2565.7,2565.2,2.4987]
[1723417510594,2.72791,2566.1,2565.4,2.72854]
[1723417510902,2.72798,2566.0,2565.4,2.72854]
[1723417511058,2.72791,2566.1,2565.5,3.27851]
[1723417511668,3.249157,2566.4,2565.7,2.72823]
[1723417511960,2.7273,2566.7,2565.9,2.4919]
[1723417512265,2.72754,2566.5,2566.0,0.07792922]
[1723417512672,2.72754,2566.5,2566.1,0.55]
[1723417512866,2.72734,2566.6,2566.1,0.55]
[1723417513283,2.72739,2566.6,2566.1,0.55]
[1723417513505,2.72752,2566.5,2566.1,0.55]
[1723417513710,5.45482,2566.6,2566.1,0.55]
[1723417514009,2.72739,2566.6,2566.1,0.55]
[1723417515590,5.4548,2566.6,2566.1,0.55]
[1723417515798,2.72755,2566.4,2566.1,0.55]
[1723417516666,2.72776,2566.2,2565.9,5.4919]
[1723417516910,2.72755,2566.4,2566.0,0.55]
[1723417517107,2.72739,2566.6,2566.0,0.55]
[1723417517313,3.000129,2566.6,2566.0,0.55]
[1723417517519,2.72755,2566.4,2566.0,0.55]
[1723417518312,3.000129,2566.6,2566.0,0.55]
[1723417518313,2.72739,2566.6,2566.0,0.55]
[1723417518474,2.72739,2566.6,2566.0,6.00579]
[1723417518669,2.72739,2566.6,2566.0,7.24128696]
[1723417519006,2.72739,2566.6,2566.0,4.51336696]
[1723417519196,5.45481,2566.6,2566.0,4.51336696]
[1723417519671,2.72747,2566.5,2566.0,3.35580409]
[1723417520103,2.72747,2566.5,2566.0,0.62793409]
[1723417520312,2.72739,2566.6,2566.0,0.62793409]
[1723417520313,2.72768,2566.3,2566.0,0.55]
[1723417520809,5.45541,2566.3,2566.0,0.55]
[1723417520994,2.72779,2566.2,2566.0,0.55]
[1723417521396,2.72779,2566.2,2565.9,0.55]
[1723417521598,29.85331703,2566.6,2566.0,5.02497]
[1723417521800,29.85331703,2566.6,2566.1,3.27786]
[1723417521801,27.12594703,2566.6,2566.1,3.27786]
[1723417522505,29.85335703,2566.6,2566.1,3.27786]
[1723417522812,27.12594703,2566.6,2566.1,3.27786]
[1723417522999,27.12594703,2566.8,2566.3,2.72765]
[1723417523329,2.72708,2566.9,2566.5,2.297]
[1723417523815,9.99692,2567.0,2566.5,5.02442]
[1723417524134,7.27,2567.0,2566.6,3.27733]
[1723417524614,7.27,2567.0,2566.7,2.72717]
[1723417525116,7.27,2567.0,2566.6,3.35524667]
[1723417525316,7.27,2567.0,2566.7,2.72722]
[1723417525678,19.85594703,2567.1,2566.8,2.72707]
[1723417525903,19.85594703,2567.1,2566.6,3.35521667]
[1723417525904,19.85594703,2567.1,2566.6,3.35516667]
[1723417526085,19.85594703,2567.1,2566.7,2.72714]
[1723417526290,19.85594703,2567.1,2566.8,0.55]
[1723417526492,19.85594703,2567.1,2566.8,5.53210233]
[1723417526779,19.85594703,2567.1,2566.9,0.55]
[1723417527092,19.55,2567.3,2566.9,0.55]
[1723417527093,9.99661,2567.3,2566.9,0.55]
[1723417527287,9.99661,2567.3,2566.7,0.62791008]
[1723417527625,2.72708,2566.9,2566.5,2.297]
[1723417527775,9.532,2567.3,2566.6,0.55]
[1723417527776,5.45375,2567.1,2566.6,0.55]
[1723417527989,0.545375,2567.0,2566.6,3.55]
[1723417528195,5.45375,2567.1,2566.6,3.55]
[1723417528394,2.72685,2567.1,2566.6,3.55]
[1723417528591,5.45375,2567.1,2566.6,3.55]
[1723417528834,2.72685,2567.1,2566.6,3.55]
[1723417529039,4.225401,2567.1,2566.6,3.55]
[1723417530439,7.27,2567.3,2566.6,3.55]
[1723417530635,2.72672,2567.2,2566.7,2.3024]
[1723417530794,2.72699,2567.0,2566.6,3.418]
[1723417531135,5.45371,2567.1,2566.6,3.418]
[1723417531437,2.72691,2567.0,2566.6,3.418]
[1723417531801,2.80591057,2566.9,2566.6,0.55]
[1723417531998,0.07888057,2566.9,2566.6,3.55]
[1723417532347,2.72677,2567.2,2566.6,6.27733]
[1723417532498,0.0777386,2566.8,2566.6,6.27733]
[1723417532702,7.27,2567.3,2566.6,6.27733]
[1723417532904,2.72678,2567.2,2566.6,6.35524692]
[1723417533125,0.07779465,2567.2,2566.8,2.72712]
[1723417533396,7.27,2567.3,2566.9,0.55]
[1723417533601,7.27,2567.3,2567.0,5.26382023]
[1723417533602,0.07785288,2567.1,2567.0,5.26382023]
[1723417533846,7.27,2567.3,2567.0,5.81382023]
[1723417534010,7.27,2567.3,2567.0,5.26382023]
[1723417534011,0.07785288,2567.1,2567.0,5.26382023]
[1723417534219,7.27,2567.5,2567.0,6.66780325]
[1723417534428,7.27,2567.5,2567.3,2.72658]
[1723417534736,7.27,2567.5,2567.4,0.55]
[1723417535140,7.27,2567.5,2567.4,2.3204]
[1723417535341,7.27,2567.5,2567.4,2.8704]
[1723417535558,7.27,2567.5,2567.4,0.55]
[1723417535705,7.27,2567.5,2567.2,0.55]
[1723417535905,9.99639,2567.5,2567.2,0.55]
[1723417536101,7.27,2567.5,2567.2,0.55]
[1723417537235,9.99644,2567.5,2567.2,0.55]
[1723417537608,9.9964,2567.5,2567.2,0.55]
[1723417538938,2.7264,2567.5,2567.2,0.55]
[1723417539276,2.7263,2567.6,2567.2,0.55]
[1723417539609,3.8302436,2567.6,2567.1,2.3204]
[1723417539810,3.8302436,2567.6,2566.9,0.07790637]
[1723417539811,5.45287,2567.5,2566.9,0.07790637]
[1723417540009,5.45287,2567.5,2566.9,3.07790637]
[1723417540010,2.72652,2567.4,2566.9,3.07790637]
[1723417540504,2.72639,2567.5,2566.9,3.07790637]
[1723417540709,2.72651,2567.4,2566.9,3.61143401]
[1723417541248,2.72639,2567.5,2567.0,0.55]
[1723417542039,2.72651,2567.4,2567.0,0.55]
[1723417542763,2.72611,2567.8,2567.2,5.59469]
[1723417542907,2.72617,2567.7,2567.3,0.6278945]
[1723417543127,2.72676,2567.2,2566.8,5.4615]
[1723417543437,5.1764,2567.7,2566.7,3.0]
[1723417543438,2.72691,2567.0,2566.7,3.0]
[1723417543823,0.51764,2567.6,2566.5,2.4615]
[1723417543824,2.4898,2567.2,2566.5,2.4615]
[1723417544025,2.4898,2567.2,2566.2,2.7277]
[1723417544026,2.4898,2567.2,2566.2,2.4814]
[1723417544280,2.72757,2566.4,2565.9,5.20944]
[1723417544568,2.72755,2566.5,2565.9,5.2094]
[1723417544773,2.72757,2566.4,2566.0,0.52094]
[1723417544991,2.72791,2566.1,2565.6,2.3258]
[1723417545267,2.72735,2566.6,2565.3,2.72865]
[1723417545503,2.72786,2566.2,2565.5,2.72844]
[1723417545848,2.72786,2566.2,2565.2,2.4791]
[1723417545849,2.7282,2565.8,2565.2,2.4791]
[1723417546474,2.728,2566.0,2565.3,2.72871]
[1723417546817,2.728,2566.0,2565.3,3.809176]
[1723417547269,2.72816,2565.9,2565.3,3.809176]
[1723417547569,0.07702982,2565.9,2565.4,0.55]
[1723417547772,0.07702982,2565.9,2565.5,2.72843]
[1723417547955,0.07702982,2565.9,2565.6,0.55]
[1723417548139,0.07690038,2565.8,2565.6,0.55]
[1723417548652,0.07659625,2565.7,2565.6,0.55]
[1723417548861,5.45585,2566.1,2565.6,0.55]
[1723417549065,0.07659625,2565.7,2565.6,0.55]
[1723417549357,2.72788,2566.1,2565.5,3.27847]
[1723417549936,0.07669507,2566.0,2565.5,3.27847]
[1723417550139,0.07669507,2566.0,2565.5,3.99502361]
[1723417550856,0.07669507,2566.0,2565.2,2.4791]
[1723417550857,2.72836,2565.7,2565.2,2.4791]
[1723417551095,2.72836,2565.7,2565.1,5.868]
[1723417551400,0.07656331,2565.6,2565.1,8.59692]
[1723417551706,0.07656331,2565.6,2565.1,9.10837436]
[1723417551865,2.80504331,2565.6,2565.1,6.37945436]
[1723417552060,2.80504331,2565.6,2565.1,5.868]
[1723417552294,2.72852,2565.5,2565.1,3.0]
[1723417552660,2.72852,2565.5,2565.0,3.0]
[1723417552661,0.07630361,2565.4,2565.0,3.0]
[1723417553577,2.7291,2565.0,2564.5,2.3925]
[1723417553776,0.0761014,2564.9,2564.5,2.3925]
[1723417554091,2.8052514,2564.9,2564.3,2.7297]
[1723417554504,2.8052514,2564.9,2564.2,5.2605]
[1723417554505,2.72941,2564.7,2564.2,5.2605]
[1723417554666,2.72941,2564.7,2564.1,2.72995]
[1723417554864,2.80535678,2564.6,2564.1,2.72995]
[1723417555089,2.80535678,2564.6,2563.9,2.3925]
[1723417555090,0.07586678,2564.6,2563.9,2.3925]
[1723417555266,2.72976,2564.4,2563.8,2.73028]
[1723417555462,2.72975,2564.4,2563.8,3.290108]
[1723417555676,0.07479403,2564.3,2563.8,3.290108]
[1723417556818,5.45988,2564.2,2563.6,2.3925]
[1723417557104,0.07463087,2564.2,2563.7,2.73036]
[1723417557469,2.7298,2564.3,2563.7,2.73036]
[1723417557668,0.07431865,2564.1,2563.7,2.73036]
[1723417557869,0.07430507,2564.2,2563.7,2.73036]
[1723417558073,0.07423909,2564.0,2563.7,2.73036]
[1723417558280,0.07427208,2564.1,2563.8,0.55]
[1723417558626,2.7308,2563.4,2562.7,2.51046365]
[1723417558918,2.7306,2563.6,2562.7,5.17463]
[1723417559103,0.07444002,2563.3,2562.9,6.77927319]
[1723417559285,2.7306,2563.6,2562.9,6.77927319]
[1723417559286,3.24844,2563.6,2562.9,6.77927319]
[1723417559496,0.07428104,2563.2,2562.9,6.77927319]
[1723417559678,2.73073,2563.5,2562.9,6.77927319]
[1723417559877,0.07409454,2563.1,2562.9,6.77927319]
[1723417560081,2.73077,2563.4,2562.9,4.04809319]
[1723417560309,0.07406153,2563.0,2562.9,4.04809319]
[1723417560626,2.4933,2564.1,2563.6,2.73052]
[1723417560789,5.22334,2564.1,2563.4,2.73066]
[1723417560987,5.22334,2564.1,2563.2,2.73092]
[1723417560988,2.73028,2563.9,2563.2,2.73092]
[1723417561187,2.73028,2563.9,2563.2,5.46174]
[1723417561375,2.73055,2563.6,2562.8,3.834]
[1723417561578,2.73064,2563.5,2562.9,5.73127]
[1723417561783,2.73076,2563.4,2562.9,3.0]
[1723417561979,2.73092,2563.3,2562.9,3.0]